Workbook

Sheet 部门收支总表
A2: 6-1 部门财务收支总体情况表
A3: 单位名称：师宗县龙庆彝族壮族乡人民政府 | D3: 单位:万元
A4: 收 入 | C4: 支 出
A5: 项 目 | B5: 预算数 | C5: 项目（按功能分类） | D5: 预算数
A7: 一.一般公共预算财政拨款 | B7: =D29 -> 2,133.74 | C7: 一.一般公共服务支出 | D7: 590.90
A8: 二.政府性基金预算财政拨款 | C8: 二.外交支出
A9: 三.国有资本经营预算财政拨款 | C9: 三.国防支出
A10: 四.事业收入 | C10: 四.公共安全支出
A11: 五.事业单位经营收入 | C11: 五.教育支出
A12: 六.其他收入 | C12: 六.科学技术支出
A13: 七.上年结转 | B13: 84.90 | C13: 七.文化体育与传媒支出 | D13: 85.74
C14: 八.社会保障和就业支出 | D14: 391.87
C15: 九.医疗卫生与计划生育支出 | D15: 85.89
C16: 十.节能环保支出
C17: 十一.城乡社区支出 | D17: 75.13
C18: 十二.农林水支出 | D18: 801.15
C19: 十三.交通运输支出
C20: 十四.资源勘探信息等支出
C21: 十五.商业服务业等支出
C22: 十六.金融支出
C23: 十七.援助其他地区支出
C24: 十八.国土海洋气象等支出
C25: 十九.住房保障支出 | D25: 103.06
C26: 二十.粮油物资储备支出
C27: 二十一.预备费
C28: 二十二.其他支出
A29: 收 入 总 计 | B29: =SUM(B7:B28) -> 2,218.64 | C29: 支 出 总 计 | D29: =SUM(D7:D28) -> 2,133.74

Sheet 部门收入总表
B2: 6-2 部门收入总体情况表
B3: 单位名称：师宗县龙庆彝族壮族乡人民政府 | C3: 单位：万元
B4: 项 目 | C4: 2018年预算数
B6: 一.一般公共预算财政拨款 | C6: 2,133.74
B7: 二.政府性基金预算财政拨款
B8: 三.国有资本经营预算财政拨款
B9: 四.事业收入
B10: 五.事业单位经营收入
B11: 六.其他收入
B12: 七.上年结转 | C12: 84.90
B14: 收 入 总 计 | C14: =SUM(C6:C13) -> 2,218.64

Sheet 部门支出总表
B2: 6-3 部门支出总体情况表
B3: 单位名称：师宗县龙庆彝族壮族乡人民政府 | C3: 单位:万元
B4: 项目（按功能分类） | C4: 2018年预算数
B6: 一.一般公共服务支出 | C6: =部门收支总表!D7 -> 590.90
B7: 二.外交支出 | C7: =部门收支总表!D8 -> 0.00
B8: 三.国防支出 | C8: =部门收支总表!D9 -> 0.00
B9: 四.公共安全支出 | C9: =部门收支总表!D10 -> 0.00
B10: 五.教育支出 | C10: =部门收支总表!D11 -> 0.00
B11: 六.科学技术支出 | C11: =部门收支总表!D12 -> 0.00
B12: 七.文化体育与传媒支出 | C12: =部门收支总表!D13 -> 85.74
B13: 八.社会保障和就业支出 | C13: =部门收支总表!D14 -> 391.87
B14: 九.医疗卫生与计划生育支出 | C14: =部门收支总表!D15 -> 85.89
B15: 十.节能环保支出 | C15: =部门收支总表!D16 -> 0.00
B16: 十一.城乡社区支出 | C16: =部门收支总表!D17 -> 75.13
B17: 十二.农林水支出 | C17: =部门收支总表!D18 -> 801.15
B18: 十三.交通运输支出 | C18: =部门收支总表!D19 -> 0.00
B19: 十四.资源勘探信息等支出 | C19: =部门收支总表!D20 -> 0.00
B20: 十五.商业服务业等支出 | C20: =部门收支总表!D21 -> 0.00
B21: 十六.金融支出 | C21: =部门收支总表!D22 -> 0.00
B22: 十七.援助其他地区支出 | C22: =部门收支总表!D23 -> 0.00
B23: 十八.国土海洋气象等支出 | C23: =部门收支总表!D24 -> 0.00
B24: 十九.住房保障支出 | C24: =部门收支总表!D25 -> 103.06
B25: 二十.粮油物资储备支出 | C25: =部门收支总表!D26 -> 0.00
B26: 二十一.预备费 | C26: =部门收支总表!D27 -> 0.00
B27: 二十二.其他支出 | C27: =部门收支总表!D28 -> 0.00
B28: 支 出 总 计 | C28: =SUM(C6:C27) -> 2,133.74

Sheet 财政拨款收支预算总表
A2: 6-4 部门财政拨款收支总体情况表
A3: 单位名称：师宗县龙庆彝族壮族乡人民政府 | D3: 单位:万元
A4: 收 入 | C4: 支 出
A5: 项 目 | B5: 预算数 | C5: 支出功能分类科目 | D5: 预算数
A7: 一.本年收入 | C7: 一.一般公共服务支出 | D7: =部门收支总表!D7 -> 590.90
A8: （一）一般公共预算财政拨款 | C8: 二.外交支出 | D8: =部门收支总表!D8 -> 0.00
A9: 1.本级财力 | C9: 三.国防支出 | D9: =部门收支总表!D9 -> 0.00
A10: 2.专项收入 | C10: 四.公共安全支出 | D10: =部门收支总表!D10 -> 0.00
A11: 3.执法办案补助 | C11: 五.教育支出 | D11: =部门收支总表!D11 -> 0.00
A12: 4.收费成本补偿 | C12: 六.科学技术支出 | D12: =部门收支总表!D12 -> 0.00
A13: 5.财政专户管理的收入 | C13: 七.文化体育与传媒支出 | D13: =部门收支总表!D13 -> 85.74
A14: 6.国有资源（资产）有偿使用收入成本补偿 | C14: 八.社会保障和就业支出 | D14: =部门收支总表!D14 -> 391.87
A15: （二）政府性基金预算财政拨款 | C15: 九.医疗卫生与计划生育支出 | D15: =部门收支总表!D15 -> 85.89
A16: （三）国有资本经营预算财政拨款 | C16: 十.节能环保支出 | D16: =部门收支总表!D16 -> 0.00
A17: 二.上年结转 | C17: 十一.城乡社区支出 | D17: =部门收支总表!D17 -> 75.13
C18: 十二.农林水支出 | D18: =部门收支总表!D18 -> 801.15
C19: 十三.交通运输支出 | D19: =部门收支总表!D19 -> 0.00
C20: 十四.资源勘探信息等支出 | D20: =部门收支总表!D20 -> 0.00
C21: 十五.商业服务业等支出 | D21: =部门收支总表!D21 -> 0.00
C22: 十六.金融支出 | D22: =部门收支总表!D22 -> 0.00
C23: 十七.援助其他地区支出 | D23: =部门收支总表!D23 -> 0.00
C24: 十八.国土海洋气象等支出 | D24: =部门收支总表!D24 -> 0.00
C25: 十九.住房保障支出 | D25: =部门收支总表!D25 -> 103.06
C26: 二十.粮油物资储备支出 | D26: =部门收支总表!D26 -> 0.00
C27: 二十一.预备费 | D27: =部门收支总表!D27 -> 0.00
C28: 二十二.其他支出 | D28: =部门收支总表!D28 -> 0.00
A29: 收 入 总 计 | C29: 支 出 总 计 | D29: =SUM(D7:D28) -> 2,133.74

Sheet 一般公共预算支出表
A1: 6-5部门一般公共预算本级财力安排支出情况表
A2: 单位名称：师宗县龙庆彝族壮族乡人民政府 | AB2: 单位：万元
A4: 功能科目编码 | D4: 单位名称（功能科目） | E4: 基本支出 | AA4: 项目支出
E5: 全年数 | O5: 已预拨 | P5: 抵扣上年垫付资金 | Q5: 本次下达
E6: 合计 | F6: 工资福利支出 | J6: 商品和服务支出 | N6: 对个人和家庭的补助 | Q6: 合计 | R6: 工资福利支出 | V6: 商品和服务支出 | Z6: 对个人和家庭的补助 | AA6: 小计 | AB6: 其中：本次下达
A7: 类 | B7: 款 | C7: 项 | F7: 小计 | G7: 人员支出 | I7: 人员支出其他 | J7: 合计 | K7: 其中：汽车保险费 | L7: 其中：汽车燃修费 | M7: 其中：行政人员公务交通补贴 | R7: 小计 | S7: 人员支出 | U7: 人员支出其他 | V7: 小计 | W7: 其中：汽车保险费 | X7: 其中：汽车燃修费 | Y7: 其中：行政人员公务交通补贴
G8: 行政人员支出工资 | H8: 事业人员支出工资 | S8: 行政人员支出工资 | T8: 事业人员支出工资
A9: 1 | B9: 2 | C9: 3 | D9: 4 | E9: 5 | F9: 6 | G9: 7 | H9: 8 | I9: 9 | J9: 10 | K9: 11 | L9: 12 | M9: 13 | N9: 14 | O9: 15 | P9: 16 | Q9: 17 | R9: 18 | S9: 19 | T9: 20 | U9: 21 | V9: 22 | W9: 23 | X9: 24 | Y9: 25 | Z9: 26 | AA9: 27 | AB9: 28
D10: 合计 | E10: =SUM(E11:E32) -> 2133.75 | F10: =SUM(F11:F32) -> 1287.25 | G10: 494.42 | H10: 792.83 | I10: 573.03 | J10: 238.79 | K10: 1.77 | L10: 8.23 | M10: 27.54 | N10: 34.68 | O10: 0 | P10: 0 | Q10: =E10 -> 2133.75 | R10: =F10 -> 1287.25 | S10: 494.42 | T10: 792.83 | U10: 573.03 | V10: 238.79 | W10: 1.77 | X10: 8.23 | Y10: 27.54 | Z10: 34.68 | AA10: 0 | AB10: 0
A11: 201 | B11: 06 | C11: 50 | D11: 事业运行 | E11: =SUM(F11,I11,J11,N11) -> 71.22 | F11: =SUM(G11:H11) -> 63.4 | G11: 63.4 | J11: 7.82 | K11: 0.45 | L11: 2.05 | M11: 3.6 | Q11: =E11 -> 71.22 | R11: =F11 -> 63.4 | S11: =G11 -> 63.4 | T11: =H11 -> 0 | U11: =I11 -> 0 | V11: =J11 -> 7.82 | W11: =K11 -> 0.45 | X11: =L11 -> 2.05 | Y11: =M11 -> 3.6 | Z11: =N11 -> 0
A12: 201 | B12: 31 | C12: 01 | D12: 行政运行 | E12: 161.93 | F12: 148.18 | G12: 148.18 | J12: 13.75 | K12: 0.5 | L12: 2 | M12: 7.74 | Q12: 161.93 | R12: 148.18 | S12: 148.18 | T12: 0 | U12: 0 | V12: 13.75 | W12: 0.5 | X12: 2 | Y12: 7.74 | Z12: 0
A13: 201 | B13: 01 | C13: 01 | D13: 行政运行 | E13: 34.1 | F13: 31.37 | G13: 31.37 | J13: 2.73 | M13: 1.8 | Q13: 34.1 | R13: 31.37 | S13: 31.37 | T13: 0 | U13: 0 | V13: 2.73 | W13: 0 | X13: 0 | Y13: 1.8 | Z13: 0
A14: 201 | B14: 03 | C14: 01 | D14: 行政运行 | E14: 317.25 | F14: 251.47 | G14: 251.47 | J14: =23.96+40 -> 63.96 | K14: 0.42 | L14: 2.08 | M14: 14.4 | N14: 1.82 | Q14: 317.25 | R14: 251.47 | S14: 251.47 | T14: 0 | U14: 0 | V14: 63.96 | W14: 0.42 | X14: 2.08 | Y14: 14.4 | Z14: 1.82
A15: 207 | B15: 01 | C15: 09 | D15: 群众文化 | E15: 85.74 | F15: 82.27 | H15: 82.27 | J15: 3.47 | Q15: 85.74 | R15: 82.27 | S15: 0 | T15: 82.27 | U15: 0 | V15: 3.47 | W15: 0 | X15: 0 | Y15: 0 | Z15: 0
A16: 208 | B16: 01 | C16: 99 | D16: 其他人力资源和社会保障管理事务支出 | E16: 109.66 | F16: 105.17 | H16: 105.17 | J16: 4.49 | Q16: 109.66 | R16: 105.17 | S16: 0 | T16: 105.17 | U16: 0 | V16: 4.49 | W16: 0 | X16: 0 | Y16: 0 | Z16: 0
A17: 212 | B17: 01 | C17: 99 | D17: 其他城乡社区管理事务支出 | E17: 75.13 | F17: 71.93 | H17: 71.93 | J17: 3.2 | Q17: 75.13 | R17: 71.93 | S17: 0 | T17: 71.93 | U17: 0 | V17: 3.2 | W17: 0 | X17: 0 | Y17: 0 | Z17: 0
A18: 213 | B18: 01 | C18: 04 | D18: 事业运行 | E18: 154.99 | F18: 148.62 | H18: 148.62 | J18: 6.23 | N18: 0.14 | Q18: 154.99 | R18: 148.62 | S18: 0 | T18: 148.62 | U18: 0 | V18: 6.23 | W18: 0 | X18: 0 | Y18: 0 | Z18: 0.14
A19: 213 | B19: 01 | C19: 04 | D19: 事业运行 | E19: 65.21 | F19: 62.57 | H19: 62.57 | J19: 2.64 | Q19: 65.21 | R19: 62.57 | S19: 0 | T19: 62.57 | U19: 0 | V19: 2.64 | W19: 0 | X19: 0 | Y19: 0 | Z19: 0
A20: 213 | B20: 01 | C20: 04 | D20: 事业运行 | E20: 115.03 | F20: 110.17 | H20: 110.17 | J20: 4.37 | N20: 0.49 | Q20: 115.03 | R20: 110.17 | S20: 0 | T20: 110.17 | U20: 0 | V20: 4.37 | W20: 0 | X20: 0 | Y20: 0 | Z20: 0.49
A21: 213 | B21: 02 | C21: 04 | D21: 林业事业机构 | E21: 145.22 | F21: 136.31 | H21: 136.31 | J21: 8.36 | K21: 0.4 | L21: 2.1 | N21: 0.55 | Q21: 145.22 | R21: 136.31 | S21: 0 | T21: 136.31 | U21: 0 | V21: 8.36 | W21: 0.4 | X21: 2.1 | Y21: 0 | Z21: 0.55
A22: 213 | B22: 03 | C22: 17 | D22: 水利技术推广 | E22: 79.09 | F22: 75.79 | H22: 75.79 | J22: 3.3 | Q22: 79.09 | R22: 75.79 | S22: 0 | T22: 75.79 | U22: 0 | V22: 3.3 | W22: 0 | X22: 0 | Y22: 0 | Z22: 0
A23: 210 | B23: 11 | C23: 01 | D23: 行政单位医疗 | E23: 85.89 | F23: 0 | I23: 85.89 | Q23: 85.89 | R23: 0 | S23: 0 | T23: 0 | U23: 85.89 | V23: 0 | W23: 0 | X23: 0 | Y23: 0 | Z23: 0
A24: 208 | B24: 05 | C24: 01 | D24: 归口管理的行政单位离退休 | E24: 17.06 | F24: 0 | J24: 0.16 | N24: 16.9 | Q24: 17.06 | R24: 0 | S24: 0 | T24: 0 | U24: 0 | V24: 0.16 | W24: 0 | X24: 0 | Y24: 0 | Z24: 16.9
A25: 208 | B25: 05 | C25: 02 | D25: 事业单位离退休 | E25: 14.92 | F25: 0 | J25: 0.14 | N25: 14.78 | Q25: 14.92 | R25: 0 | S25: 0 | T25: 0 | U25: 0 | V25: 0.14 | W25: 0 | X25: 0 | Y25: 0 | Z25: 14.78
A26: 208 | B26: 05 | C26: 05 | D26: 机关事业单位基本养老保险缴费支出 | E26: 177.51 | F26: 0 | I26: 177.51 | Q26: 177.51 | R26: 0 | S26: 0 | T26: 0 | U26: 177.51 | V26: 0 | W26: 0 | X26: 0 | Y26: 0 | Z26: 0
A27: 208 | B27: 05 | C27: 06 | D27: 机关事业单位职业年金缴费支出 | E27: 71 | F27: 0 | I27: 71 | Q27: 71 | R27: 0 | S27: 0 | T27: 0 | U27: 71 | V27: 0 | W27: 0 | X27: 0 | Y27: 0 | Z27: 0
A28: 208 | B28: 27 | C28: 02 | D28: 财政对工伤保险基金的补助 | E28: 1.72 | F28: 0 | I28: 1.72 | Q28: 1.72 | R28: 0 | S28: 0 | T28: 0 | U28: 1.72 | V28: 0 | W28: 0 | X28: 0 | Y28: 0 | Z28: 0
A29: 221 | B29: 02 | C29: 01 | D29: 住房公积金 | E29: 103.06 | F29: 0 | I29: 103.06 | Q29: 103.06 | R29: 0 | S29: 0 | T29: 0 | U29: 103.06 | V29: 0 | W29: 0 | X29: 0 | Y29: 0 | Z29: 0
A30: 213 | B30: 07 | C30: 05 | D30: 对村民委员会和村党支部的补助 | E30: 196.62 | I30: 133.85 | J30: 62.77 | Q30: 196.62 | R30: 0 | S30: 0 | T30: 0 | U30: 133.85 | V30: 62.77 | W30: 0 | X30: 0 | Y30: 0 | Z30: 0
A31: 201 | B31: 01 | C31: 08 | D31: 代表工作 | E31: 6.4 | J31: 6.4 | Q31: 6.4 | R31: 0 | S31: 0 | T31: 0 | U31: 0 | V31: 6.4 | W31: 0 | X31: 0 | Y31: 0 | Z31: 0
A32: 213 | B32: 05 | C32: 99 | D32: 其他扶贫支出 | E32: 45 | J32: 45 | Q32: 45 | R32: 0 | S32: 0 | T32: 0 | U32: 0 | V32: 45 | W32: 0 | X32: 0 | Y32: 0 | Z32: 0

Sheet 基本支出预算表
A2: 6-6 部门基本支出情况表
R3: 单位：万元
A4: 部门预算经济科目编码 | C4: 单位、部门预算经济科目名称 | D4: 资金来源
D5: 总计 | E5: 财政拨款 | P5: 单位自筹
A6: 类 | B6: 款 | E6: 合计 | F6: 一般公共预算 | N6: 政府性基金预算 | O6: 国有资本经营预算
F7: 小计 | G7: 本级财力 | H7: 专项收入 | I7: 执法办案 补助 | J7: 收费成本 补偿 | K7: 财政专户管理的收入 | L7: 国有资源（资产）有偿使用收入成本补偿 | M7: 上年结转 | P7: 小计 | Q7: 事业收入 | R7: 事业单位 经营收入 | S7: 其他收入
A8: 1 | B8: 2 | C8: 3 | D8: 4 | E8: 5 | F8: 6 | G8: 7 | H8: 8 | I8: 9 | J8: 10 | K8: 11 | L8: 12 | M8: 13 | N8: 14 | O8: 15 | P8: 16 | Q8: 17 | R8: 18 | S8: 19
A9: 单位名称：师宗县龙庆彝族壮族乡人民政府
A10: 301 | C10: 工资福利支出 | D10: =SUM(E10) -> 1945.21 | E10: =F10+M10 -> 1945.21 | F10: =G10 -> 1860.31 | G10: 1860.31 | M10: 84.9
B11: 01 | C11: 基本工资 | D11: =SUM(E11) -> 344.31 | E11: =F11 -> 344.31 | F11: =G11 -> 344.31 | G11: 344.31
B12: 02 | C12: 津贴补贴 | D12: 650.87 | E12: 650.87 | F12: 650.87 | G12: 650.87
B13: 03 | C13: 奖金 | D13: 28.69 | E13: 28.69 | F13: 28.69 | G13: 28.69
B14: 06 | C14: 伙食补助费 | D14: 0 | E14: 0 | F14: 0
B15: 07 | C15: 绩效工资 | D15: 255.12 | E15: 255.12 | F15: =G15+M15 -> 255.12 | G15: 170.22 | M15: 84.9
B16: 08 | C16: 机关事业单位基本养老保险缴费 | D16: 177.51 | E16: 177.51 | F16: 177.51 | G16: 177.51
B17: 09 | C17: 职业年金缴费 | D17: 71 | E17: 71 | F17: 71 | G17: 71
B18: 10 | C18: 职工基本医疗保险缴费 | D18: 85.89 | E18: 85.89 | F18: 85.89 | G18: 85.89
B19: 11 | C19: 公务员医疗补助缴费 | D19: 0 | E19: 0 | F19: 0
B20: 12 | C20: 其他社会保障缴费 | D20: 1.72 | E20: 1.72 | F20: 1.72 | G20: 1.72
B21: 13 | C21: 住房公积金 | D21: 119.63 | E21: 119.63 | F21: 119.63 | G21: 119.63
B22: 14 | C22: 医疗费 | D22: 0 | E22: 0 | F22: 0
B23: 99 | C23: 其他工资福利支出 | D23: 210.47 | E23: 210.47 | F23: 210.47 | G23: 210.47
A24: 302 | C24: 商品和服务支出 | D24: 238.75 | E24: 238.75 | F24: 238.75 | G24: 238.75
B25: 01 | C25: 办公费 | D25: 25.26 | E25: 25.26 | F25: 25.26 | G25: 25.26
B26: 02 | C26: 印刷费 | D26: 1.88 | E26: 1.88 | F26: 1.88 | G26: 1.88
B27: 03 | C27: 咨询费 | D27: 0 | E27: 0 | F27: 0
B28: 04 | C28: 手续费 | D28: 0 | E28: 0 | F28: 0
B29: 05 | C29: 水费 | D29: 1.92 | E29: 1.92 | F29: 1.92 | G29: 1.92
B30: 06 | C30: 电费 | D30: 6.85 | E30: 6.85 | F30: 6.85 | G30: 6.85
B31: 07 | C31: 邮电费 | D31: 5.93 | E31: 5.93 | F31: 5.93 | G31: 5.93
B32: 08 | C32: 取暖费 | D32: 0 | E32: 0 | F32: 0
B33: 09 | C33: 物业管理费 | D33: 0 | E33: 0 | F33: 0
B34: 11 | C34: 差旅费 | D34: 6.53 | E34: 6.53 | F34: 6.53 | G34: 6.53
B35: 12 | C35: 因公出国（境）费用 | D35: 0 | E35: 0 | F35: 0
B36: 13 | C36: 维修（护）费 | D36: 5.24 | E36: 5.24 | F36: 5.24 | G36: 5.24
B37: 14 | C37: 租赁费 | D37: 0 | E37: 0 | F37: 0
B38: 15 | C38: 会议费 | D38: 12.55 | E38: 12.55 | F38: 12.55 | G38: 12.55
B39: 16 | C39: 培训费 | D39: 8.3 | E39: 8.3 | F39: 8.3 | G39: 8.3
B40: 17 | C40: 公务接待费 | D40: 26.75 | E40: 26.75 | F40: 26.75 | G40: 26.75
B41: 18 | C41: 专用材料费 | D41: 0 | E41: 0 | F41: 0
B42: 24 | C42: 被装购置费 | D42: 0 | E42: 0 | F42: 0
B43: 25 | C43: 专用燃料费 | D43: 0 | E43: 0 | F43: 0
B44: 26 | C44: 劳务费 | D44: 0 | E44: 0 | F44: 0
B45: 27 | C45: 委托业务费 | D45: 0 | E45: 0 | F45: 0
B46: 28 | C46: 工会经费 | D46: 0 | E46: 0 | F46: 0
B47: 29 | C47: 福利费 | D47: 8.6 | E47: 8.6 | F47: 8.6 | G47: 8.6
B48: 31 | C48: 公务用车运行维护费 | D48: 10 | E48: 10 | F48: 10 | G48: 10
B49: 39 | C49: 其他交通费用 | D49: 27.54 | E49: 27.54 | F49: 27.54 | G49: 27.54
B50: 40 | C50: 税金及附加费用 | D50: 0 | E50: 0 | F50: 0
B51: 99 | C51: 其他商品和服务支出 | D51: 91.4 | E51: 91.4 | F51: 91.4 | G51: 91.4
A52: 303 | C52: 对个人和家庭的补助 | D52: 34.69 | E52: 34.69 | F52: 34.69 | G52: 34.69
B53: 01 | C53: 离休费 | D53: 0 | E53: 0 | F53: 0 | G53: 0
B54: 02 | C54: 退休费 | D54: 31.68 | E54: 31.68 | F54: 31.68 | G54: 31.68
B55: 03 | C55: 退职（役）费 | D55: 0 | E55: 0 | F55: 0
B56: 04 | C56: 抚恤金 | D56: 0 | E56: 0 | F56: 0
B57: 05 | C57: 生活补助 | D57: =SUM(E57) -> 3.01 | E57: 3.01 | F57: 3.01 | G57: 3.01
B58: 06 | C58: 救济费
B59: 07 | C59: 医疗费补助
B60: 08 | C60: 助学金
B61: 09 | C61: 奖励金
B62: 10 | C62: 个人农业生产补贴
B63: 99 | C63: 其他对个人和家庭的补助

Sheet 政府性基金预算支出表
A1: 6-7 部门政府性基金预算支出情况表
A2: 单位名称：师宗县龙庆彝族壮族乡人民政府 | G2: 单位:万元
A3: 功能科目 | E3: 政府性基金预算支出
A4: 类 | B4: 款 | C4: 项 | D4: 科目名称 | E4: 合计 | F4: 基本支出 | G4: 项目支出
A5: 1 | B5: 2 | C5: 3 | D5: 4 | E5: 5 | F5: 6 | G5: 7
D6: 支出总计
E7: 0 | F7: 0 | G7: 0

Sheet 财政拨款支出明细表（按经济分类科目）
A2: 6-8 财政拨款支出明细表（按经济科目分类）
A3: 单位名称：师宗县龙庆彝族壮族乡人民政府 | R3: 单位:万元
A4: 支 出 | J4: 支 出
A5: 政府预算支出经济分类科目 | D5: 一般公共预算 | G5: 政府性基金预算 | J5: 部门预算支出经济分类科目 | M5: 一般公共预算 | P5: 政府性基金预算
A6: 类 | B6: 款 | C6: 科目名称 | D6: 小计 | E6: 基本支出 | F6: 项目支出 | G6: 小计 | H6: 基本支出 | I6: 项目支出 | J6: 类 | K6: 款 | L6: 科目名称 | M6: 小计 | N6: 基本支出 | O6: 项目支出 | P6: 小计 | Q6: 基本支出 | R6: 项目支出
A7: 1 | B7: 2 | C7: 3 | D7: 4 | E7: 5 | F7: 6 | G7: 7 | H7: 8 | I7: 9 | J7: 10 | K7: 11 | L7: 12 | M7: 13 | N7: 14 | O7: 15 | P7: 16 | Q7: 17 | R7: 18
A8: 501 | C8: 机关工资福利支出 | D8: =SUM(D9:D12) -> 1860.31 | J8: 301 | L8: 工资福利支出 | M8: =SUM(M9:M21) -> 1860.31 | N8: =M8 -> 1860.31
B9: 01 | C9: 工资奖金津补贴 | D9: =SUM(N9:N11,N13) -> 1194.09 | K9: 01 | L9: 基本工资 | M9: 344.31 | N9: =M9 -> 344.31
B10: 02 | C10: 社会保障缴费 | D10: =SUM(N14:N18) -> 336.12 | K10: 02 | L10: 津贴补贴 | M10: 650.87 | N10: 650.87
B11: 03 | C11: 住房公积金 | D11: =N19 -> 119.63 | K11: 03 | L11: 奖金 | M11: 28.69 | N11: 28.69
B12: 99 | C12: 其他工资福利支出 | D12: =M21 -> 210.47 | K12: 06 | L12: 伙食补助费 | N12: 0
A13: 502 | C13: 机关商品和服务支出 | D13: =SUM(D14:D23) -> 238.75 | K13: 07 | L13: 绩效工资 | M13: 170.22 | N13: 170.22
B14: 01 | C14: 办公经费 | D14: =SUM(M23:M32,M45,M47) -> 84.51 | K14: 08 | L14: 机关事业单位基本养老保险缴费 | M14: 177.51 | N14: 177.51
B15: 02 | C15: 会议费 | D15: =M36 -> 12.55 | K15: 09 | L15: 职业年金缴费 | M15: 71 | N15: 71
B16: 03 | C16: 培训费 | D16: =M37 -> 8.3 | K16: 10 | L16: 职工基本医疗保险缴费 | M16: 85.89 | N16: 85.89
B17: 04 | C17: 专用材料购置费 | K17: 11 | L17: 公务员医疗补助缴费 | N17: 0
B18: 05 | C18: 委托业务费 | K18: 12 | L18: 其他社会保障缴费 | M18: 1.72 | N18: 1.72
B19: 06 | C19: 公务接待费 | D19: =M38 -> 26.75 | K19: 13 | L19: 住房公积金 | M19: 119.63 | N19: 119.63
B20: 07 | C20: 因公出国（境）费用 | K20: 14 | L20: 医疗费 | N20: 0
B21: 08 | C21: 公务用车运行维护费 | D21: 10 | K21: 99 | L21: 其他工资福利支出 | M21: 210.47 | N21: 210.47
B22: 09 | C22: 维修（护）费 | D22: =M34 -> 5.24 | J22: 302 | L22: 商品和服务支出 | M22: =SUM(M23:M49) -> 238.75 | N22: 238.75
B23: 99 | C23: 其他商品和服务支出 | D23: =M49 -> 91.4 | K23: 01 | L23: 办公费 | M23: 25.26 | N23: 25.26
A24: 503 | C24: 机关资本性支出（一） | K24: 02 | L24: 印刷费 | M24: 1.88 | N24: 1.88
B25: 01 | C25: 房屋建筑物构建 | K25: 03 | L25: 咨询费 | N25: 0
B26: 02 | C26: 基础设施建设 | K26: 04 | L26: 手续费 | N26: 0
B27: 03 | C27: 公务用车购置 | K27: 05 | L27: 水费 | M27: 1.92 | N27: 1.92
B28: 05 | C28: 土地征迁补偿和安置支出 | K28: 06 | L28: 电费 | M28: 6.85 | N28: 6.85
B29: 06 | C29: 设备购置 | K29: 07 | L29: 邮电费 | M29: 5.93 | N29: 5.93
B30: 07 | C30: 大型修缮 | K30: 08 | L30: 取暖费 | N30: 0
B31: 99 | C31: 其他资本性支出 | K31: 09 | L31: 物业管理费 | N31: 0
A32: 504 | C32: 机关资本性支出（二） | K32: 11 | L32: 差旅费 | M32: 6.53 | N32: 6.53
B33: 01 | C33: 房屋建筑物构建 | K33: 12 | L33: 因公出国（境）费用 | N33: 0
B34: 02 | C34: 基础设施建设 | K34: 13 | L34: 维修（护）费 | M34: 5.24 | N34: 5.24
B35: 03 | C35: 公务用车购置 | K35: 14 | L35: 租赁费 | N35: 0
B36: 04 | C36: 设备购置 | K36: 15 | L36: 会议费 | M36: 12.55 | N36: 12.55
B37: 05 | C37: 大型修缮 | K37: 16 | L37: 培训费 | M37: 8.3 | N37: 8.3
B38: 99 | C38: 其他资本性支出 | K38: 17 | L38: 公务接待费 | M38: 26.75 | N38: 26.75
A39: 505 | C39: 对事业单位经常性补助 | K39: 18 | L39: 专用材料费 | N39: 0
B40: 01 | C40: 工资福利支出 | K40: 24 | L40: 被装购置费 | N40: 0
B41: 02 | C41: 商品和服务支出 | K41: 25 | L41: 专用燃料费 | N41: 0
B42: 99 | C42: 其他对事业单位补助 | K42: 26 | L42: 劳务费 | N42: 0
A43: 506 | C43: 对事业单位资本性补助 | K43: 27 | L43: 委托业务费 | N43: 0
B44: 01 | C44: 资本性支出（一） | K44: 28 | L44: 工会经费 | N44: 0
B45: 02 | C45: 资本性支出（二） | K45: 29 | L45: 福利费 | M45: 8.6 | N45: 8.6
A46: 507 | C46: 对企业补助 | K46: 31 | L46: 公务用车运行维护费 | M46: 10 | N46: 10
B47: 01 | C47: 费用补贴 | K47: 39 | L47: 其他交通费用 | M47: 27.54 | N47: 27.54
B48: 02 | C48: 利息补贴 | K48: 40 | L48: 税金及附加费用 | N48: 0
B49: 99 | C49: 其他对企业补助 | K49: 99 | L49: 其他商品和服务支出 | M49: 91.4 | N49: 91.4
A50: 508 | C50: 对企业资本性支出 | J50: 303 | L50: 对个人和家庭的补助 | M50: =SUM(M51:M61) -> 34.69 | N50: 34.69
B51: 01 | C51: 对企业资本性支出（一） | K51: 01 | L51: 离休费 | M51: 0 | N51: 0
B52: 02 | C52: 对企业资本性支出（二） | K52: 02 | L52: 退休费 | M52: 31.68 | N52: 31.68
A53: 509 | C53: 对个人和家庭的补助 | D53: =SUM(D54:D58) -> 34.69 | K53: 03 | L53: 退职（役）费 | N53: 0
B54: 01 | C54: 社会福利和救助 | D54: =M55 -> 3.01 | K54: 04 | L54: 抚恤金 | N54: 0
B55: 02 | C55: 助学金 | K55: 05 | L55: 生活补助 | M55: 3.01 | N55: 3.01
B56: 03 | C56: 个人农业生产补贴 | K56: 06 | L56: 救济费 | N56: 0
B57: 05 | C57: 离退休费 | D57: =M52 -> 31.68 | K57: 07 | L57: 医疗费补助 | N57: 0
B58: 99 | C58: 其他对个人和家庭补助 | K58: 08 | L58: 助学金 | N58: 0
A59: 510 | C59: 对社会保障基金补助 | K59: 09 | L59: 奖励金 | N59: 0
B60: 02 | C60: 对社会保险基金补助 | K60: 10 | L60: 个人农业生产补贴 | N60: 0
B61: 03 | C61: 补充全国社会保障基金 | K61: 99 | L61: 其他对个人和家庭的补助 | N61: 0
A62: 511 | C62: 债务利息及费用支出 | J62: 307 | L62: 债务利息及费用支出 | N62: 0
B63: 01 | C63: 国内债务付息 | K63: 01 | L63: 国内债务付息 | N63: 0
B64: 02 | C64: 国外债务付息 | K64: 02 | L64: 国外债务付息 | N64: 0
B65: 03 | C65: 国内债务发行费用 | K65: 03 | L65: 国内债务发行费用 | N65: 0
B66: 04 | C66: 国外债务发行费用 | K66: 04 | L66: 国外债务发行费用 | N66: 0
A67: 512 | C67: 债务还本支出 | J67: 309 | L67: 资本性支出（基本建设） | N67: 0
B68: 01 | C68: 国内债务还本 | K68: 01 | L68: 房屋建筑物购建 | N68: 0
B69: 02 | C69: 国外债务还本 | K69: 02 | L69: 办公设备购置 | N69: 0
A70: 513 | C70: 转移性支出 | K70: 03 | L70: 专用设备购置 | N70: 0
B71: 01 | C71: 上下级政府间转移性支出 | K71: 05 | L71: 基础设施建设 | N71: 0
B72: 02 | C72: 援助其他地区支出 | K72: 06 | L72: 大型修缮 | N72: 0
B73: 03 | C73: 债务转贷 | K73: 07 | L73: 信息网络及软件购置更新 | N73: =M73 -> 0
B74: 04 | C74: 调出资金 | K74: 08 | L74: 物资储备 | N74: 0
A75: 514 | C75: 预备费及预留 | K75: 13 | L75: 公务用车购置 | N75: 0
B76: 01 | C76: 预备费 | K76: 19 | L76: 其他交通工具购置 | N76: 0
B77: 02 | C77: 预留 | K77: 21 | L77: 文物和陈列品购置 | N77: 0
A78: 599 | C78: 其他支出 | K78: 22 | L78: 无形资产购置 | N78: 0
B79: 06 | C79: 赠与 | K79: 99 | L79: 其他基本建设支出 | N79: 0
B80: 07 | C80: 国家赔偿费用支出 | J80: 310 | L80: 资本性支出 | N80: 0
B81: 08 | C81: 对民间非营利组织和群众性自治组织补贴 | K81: 01 | L81: 房屋建筑物购建 | N81: 0
B82: 99 | C82: 其他支出 | K82: 02 | L82: 办公设备购置 | N82: 0
K83: 03 | L83: 专用设备购置 | N83: 0
K84: 05 | L84: 基础设施建设 | N84: 0
K85: 06 | L85: 大型修缮 | N85: 0
K86: 07 | L86: 信息网络及软件购置更新 | N86: 0
K87: 08 | L87: 物资储备 | N87: 0
K88: 09 | L88: 土地补偿 | N88: 0
K89: 10 | L89: 安置补助 | N89: 0
K90: 11 | L90: 地上附着物和青苗补偿 | N90: 0
K91: 12 | L91: 拆迁补偿 | N91: 0
K92: 13 | L92: 公务用车购置 | N92: 0
K93: 19 | L93: 其他交通工具购置 | N93: 0
K94: 21 | L94: 文物和陈列品购置 | N94: 0
K95: 22 | L95: 无形资产购置 | N95: 0
K96: 99 | L96: 其他资本性支出 | N96: 0
J97: 311 | L97: 对企业补助（基本建设） | N97: 0
K98: 01 | L98: 资本金注入 | N98: 0
K99: 99 | L99: 其他对企业补助 | N99: 0
J100: 312 | L100: 对企业补助 | N100: 0
K101: 01 | L101: 资本金注入 | N101: 0
K102: 03 | L102: 政府投资基金股权投资 | N102: 0
K103: 04 | L103: 费用补贴 | N103: 0
K104: 05 | L104: 利息补贴 | N104: 0
K105: 99 | L105: 其他对企业补助 | N105: 0
J106: 313 | L106: 对社会保障基金补助 | N106: 0
K107: 02 | L107: 对社会保险基金补助 | N107: 0
K108: 03 | L108: 补充全国社会保障基金 | N108: 0
J109: 399 | L109: 其他支出 | N109: 0
K110: 06 | L110: 赠与 | N110: 0
K111: 07 | L111: 国家赔偿费用支出 | N111: 0
K112: 08 | L112: 对民间非营利组织和群众性自治组织补贴 | N112: 0
K113: 99 | L113: 其他支出 | N113: 0
A114: 支 出 总 计 | D114: =SUM(D53,D13,D8) -> 2133.75 | J114: 支 出 总 计 | M114: =SUM(M8,M22,M50) -> 2133.75 | N114: 2133.75

Sheet “三公”经费公共预算财政拨款支出情况表
A1: 6-9 部门一般公共预算“三公”经费支出情况表
A3: 部门：师宗县龙庆彝族壮族乡人民政府 | E3: 单位：万元
A4: 项目 | B4: 本年年初预算数 | C4: 上年年初预算数 | D4: 本年预算比上年增减情况
D5: 增减额 | E5: 增减幅度
A6: 合计 | B6: =SUM(B8:B9) -> 36.76 | C6: =SUM(C8:C9) -> 40 | D6: -3.24 | E6: -10.80%
A7: 1.因公出国（境）费
A8: 2.公务接待费 | B8: 26.76 | C8: 30 | D8: =B8-C8 -> -3.24 | E8: =D8/C8 -> -10.80%
A9: 3.公务用车购置及运行 | B9: 10 | C9: 10 | D9: =B9-C9 -> 0 | E9: =D9/C9 -> 0
A10: 其中：（1）公务用车购置费
A11: （2）公务用车运行费 | B11: 10 | C11: 10 | D11: 0 | E11: =D11/C11 -> 0
A12: 注： 一、按照党中央、国务院有关文件及部门预算管理有关规定，“三公”经费包括因公出国（境）费、公务用车购置及运行费和公务接待费。（1）因公出国（境）费，指单位工作人员公务出国（境）的住宿费、旅费、伙食补助费、杂费、培训费等支出。（2）公务用车购置及运行费，指单位公务用车购置费及租用费、燃料费、维修费、过路过桥费、保险费、安全奖励费用等支出，公务用车指用于履行公务的机动车辆，包括领导干部专车、一般公务用车和执法执勤用车。（3）公务接待费，指单位按规定开支的各类公务接待（含外宾接待）支出。 二、“三公”经费增减变化原因说明: ......

Sheet 省本级绩效目标表-1
A2: 6-10 省本级项目支出绩效目标表（本次下达）
A3: 单位名称：师宗县龙庆彝族壮族乡人民政府
A4: 单位名称、项目名称 | B4: 项目目标 | C4: 一级指标 | D4: 二级指标 | E4: 三级指标 | F4: 指标值 | G4: 绩效指标值设定依据及数据来源 | H4: 说明
A5: 1 | B5: 2 | C5: 3 | D5: 4 | E5: 5 | F5: 6 | G5: 7 | H5: 8
A6: 单位
A7: 省本级二级项目1
A8: 省本级二级项目2

Sheet 省本级绩效目标表-2
A2: 6-11 省本级项目支出绩效目标表（另文下达）
A3: 单位名称：师宗县龙庆彝族壮族乡人民政府
A4: 单位名称、项目名称 | B4: 项目目标 | C4: 一级指标 | D4: 二级指标 | E4: 三级指标 | F4: 指标值 | G4: 绩效指标值设定依据及数据来源 | H4: 说明
A5: 1 | B5: 2 | C5: 3 | D5: 4 | E5: 5 | F5: 6 | G5: 7 | H5: 8
A6: 单位
A7: 省本级二级项目1
A8: 省本级二级项目2

Sheet 省对下绩效目标表
A2: 6-12 省对下转移支付绩效目标表
A3: 单位名称：师宗县龙庆彝族壮族乡人民政府
A4: 单位名称、项目名称 | B4: 项目目标 | C4: 一级指标 | D4: 二级指标 | E4: 三级指标 | F4: 指标值 | G4: 绩效指标值设定依据及数据来源 | H4: 说明
A5: 1 | B5: 2 | C5: 3 | D5: 4 | E5: 5 | F5: 6 | G5: 7 | H5: 8
A6: 单位
A7: 省对下二级项目1
A8: 省对下二级项目2

Sheet 政府采购表
A2: 6-13 部门政府采购情况表
A3: 单位名称：师宗县龙庆彝族壮族乡人民政府 | V3: 单位：万元
A4: 预算项目 | B4: 采购项目 | C4: 采购目录 | D4: 计量 单位 | E4: 数量 | F4: 面向中小企业预留资金 | G4: 基本支出/项目支出 | H4: 资金来源
H5: 合计 | I5: 一般公共预算 | Q5: 政府性 基金 | R5: 国有资本经营收益 | S5: 单位自筹
I6: 小计 | J6: 本级财力 | K6: 专项收入 | L6: 执法办案 补助 | M6: 收费成本 补偿 | N6: 财政专户管理的收入 | O6: 国有资源（资产）有偿使用收入成本补偿 | P6: 上年结转 | S6: 小计 | T6: 事业收入 | U6: 事业单位 经营收入 | V6: 其他收入
A7: 1 | B7: 2 | C7: 3 | D7: 4 | E7: 5 | F7: 6 | G7: 7 | H7: 8 | I7: 9 | J7: 10 | K7: 11 | L7: 12 | M7: 13 | N7: 14 | O7: 15 | P7: 16 | Q7: 17 | R7: 18 | S7: 19 | T7: 20 | U7: 21 | V7: 22
A8: 2010650事业运行 | B8: 车辆保险 | C8: 服务类 | D8: 份 | E8: 1 | G8: 基本支出 | H8: =I8 -> 0.60 | I8: =J8 -> 0.60 | J8: 0.60
A9: 2010650事业运行 | B9: 计算机 | C9: 货物类 | D9: 台 | E9: 3 | G9: 基本支出 | H9: =I9 -> 0.50 | I9: =J9 -> 0.50 | J9: 0.50
A10: 2010650事业运行 | B10: 打印机 | C10: 货物类 | D10: 台 | E10: 1 | G10: 基本支出 | H10: 2.00 | I10: 2.00 | J10: 2.00
A11: 2010650事业运行 | B11: 办公家具 | C11: 货物类 | D11: 套 | E11: 2 | G11: 基本支出 | H11: 0.40 | I11: 0.40 | J11: 0.40
A12: 2010650事业运行 | B12: 档案设备 | C12: 货物类 | D12: 套 | E12: 2 | G12: 基本支出 | H12: 0.30 | I12: 0.30 | J12: 0.30
A13: 2010301行政运行 | B13: 车辆保险 | C13: 服务类 | D13: 份 | E13: 4 | G13: 基本支出 | H13: 2.72 | I13: 2.72 | J13: 2.72
A14: 2010301行政运行 | B14: 计算机 | C14: 货物类 | D14: 台 | E14: 6 | G14: 基本支出 | H14: 3.60 | I14: 3.60 | J14: 3.60
A15: 2010301行政运行 | B15: 办公家具 | C15: 货物类 | D15: 套 | E15: 10 | G15: 基本支出 | H15: 1.16 | I15: 1.16 | J15: 1.16
A16: 合计 | H16: 21.28 | I16: 21.28 | J16: =SUM(J7:J15) -> 21.28
